bitfinex/quotes_SOLUSD_20250901
["timestamp","ask_amount","ask_price","bid_price","bid_amount"]
[1756695636125,26.0,197.62,197.61,1e-08]
[1756695636333,31.06021657,197.62,197.61,1e-08]
[1756695636538,134.4,197.61,197.59,1e-08]
[1756695636734,26.0,197.59,197.58,1e-08]
[1756695638416,31.06098486,197.59,197.58,1e-08]
[1756695650752,76.16098486,197.59,197.58,1e-08]
[1756695653726,76.16098486,197.59,197.53,1e-08]
[1756695653727,117.40919445,197.59,197.53,1e-08]
[1756695654032,114.11837135,197.59,197.53,1e-08]
[1756695654245,3.29050813,197.58,197.53,1e-08]
[1756695654429,26.0,197.54,197.53,1e-08]
[1756695654626,5.06098486,197.59,197.53,1e-08]
[1756695654842,26.0,197.56,197.53,1e-08]
[1756695656057,5.06200961,197.55,197.53,1e-08]
[1756695661557,26.0,197.52,197.51,1e-08]
[1756695662325,31.06277845,197.52,197.51,1e-08]
[1756695664474,5.0625633,197.53,197.51,1e-08]
[1756695664778,5.06149719,197.57,197.51,1e-08]
[1756695664958,31.06149719,197.57,197.51,1e-08]
[1756695665261,17.71524016,197.57,197.51,1e-08]
[1756695665765,5.06149719,197.57,197.51,1e-08]
[1756695665959,31.06149719,197.57,197.51,1e-08]
[1756695666349,12.65366156,197.58,197.51,1e-08]
[1756695666552,26.0,197.57,197.51,1e-08]
[1756695667854,70.84,197.57,197.51,1e-08]
[1756695668050,26.0,197.53,197.51,1e-08]
[1756695668451,5.06277845,197.52,197.51,1e-08]
[1756695669055,8.36159806,197.52,197.51,1e-08]
[1756695669362,26.0,197.43,197.38,0.2]
[1756695669560,44.82,197.46,197.38,0.2]
[1756695669864,26.0,197.43,197.38,0.2]
[1756695670243,26.0,197.44,197.38,0.2]
[1756695670571,26.0,197.43,197.38,0.2]
[1756695670767,12.65901219,197.49,197.38,0.2]
[1756695671264,26.0,197.46,197.38,0.2]
[1756695671651,26.0,197.46,197.39,13.59559401]
[1756695672476,5.0645733,197.45,197.39,13.59559401]
[1756695672775,5.0645733,197.45,197.38,140.2]
[1756695673346,17.72600657,197.45,197.38,140.2]
[1756695674569,5.06559951,197.41,197.38,140.2]
[1756695674745,5.06559951,197.41,197.38,0.2]
[1756695675164,70.76,197.48,197.38,0.2]
[1756695675364,26.0,197.45,197.38,0.2]
[1756695675889,26.0,197.46,197.38,0.2]
[1756695676445,5.0645733,197.45,197.38,0.2]
[1756695676772,26.0,197.44,197.39,13.59559401]
[1756695676994,17.72152915,197.5,197.41,13.59559401]
[1756695677479,0.06,197.52,197.43,17.32614899]
[1756695677694,0.06,197.52,197.45,17.32614899]
[1756695677853,5.12281207,197.52,197.45,13.59559401]
[1756695678053,26.0,197.49,197.43,184.72]
[1756695678654,5.06380392,197.48,197.43,184.72]
[1756695678978,5.06380392,197.48,197.43,140.0]
[1756695679182,5.06336863,197.5,197.44,13.59559401]
[1756695679955,31.06308508,197.51,197.44,13.59559401]
[1756695680156,31.06308508,197.51,197.44,17.32614899]
[1756695680374,31.06308508,197.51,197.44,13.59559401]
[1756695680573,0.06,197.52,197.44,13.59559401]
[1756695680574,0.06,197.52,197.44,18.66034027]
[1756695680884,0.06,197.52,197.44,22.39089525]
[1756695681184,0.06,197.52,197.45,3.73055498]
[1756695681684,0.06,197.52,197.47,3.73055498]
[1756695681983,0.06,197.52,197.5,17.32614899]
[1756695682383,0.06,197.52,197.5,3.73055498]
[1756695682681,0.06,197.52,197.51,22.38918377]
[1756695682868,0.06,197.52,197.51,18.65862879]
[1756695683069,0.06,197.52,197.51,22.38918377]
[1756695683678,0.06,197.52,197.51,18.65862879]
[1756695683884,0.06,197.52,197.51,87.96614899]
[1756695684290,0.06,197.52,197.51,227.96614899]
[1756695684471,0.06,197.52,197.51,153.59559401]
[1756695684674,0.06,197.52,197.51,198.23559401]
[1756695684998,0.06,197.52,197.51,184.62]
[1756695685168,0.06,197.52,197.51,44.62]
[1756695685558,0.06,197.52,197.47,13.59559401]
[1756695685763,0.06,197.52,197.48,44.62]
[1756695686186,0.06,197.52,197.4,5.06565283]
[1756695686388,0.06,197.52,197.45,13.59559401]
[1756695686593,0.06,197.52,197.47,13.59559401]
[1756695687665,26.01441884,197.52,197.47,13.59559401]
[1756695688184,26.01441884,197.52,197.47,184.58]
[1756695689290,5.06303478,197.51,197.47,184.58]
[1756695689486,26.0,197.48,197.36,0.03]
[1756695689788,26.0,197.48,197.4,13.59559401]
[1756695689992,26.0,197.48,197.42,13.59559401]
[1756695692400,5.07743891,197.52,197.43,3.73055498]
[1756695692701,5.07743891,197.52,197.44,3.73055498]
[1756695692869,5.07743891,197.52,197.46,13.59559401]
[1756695693070,31.07743891,197.52,197.46,13.59559401]
[1756695694213,43.73438504,197.52,197.43,13.59559401]
[1756695694375,26.0,197.49,197.44,44.5]
[1756695694901,26.0,197.49,197.43,13.59559401]
[1756695695108,26.0,197.49,197.44,44.5]
[1756695695470,26.0,197.45,197.42,140.0]
[1756695695767,26.0,197.45,197.42,0.03]
[1756695697396,5.06482982,197.44,197.42,0.03]
[1756695699470,26.0,197.47,197.42,0.03]
[1756695701599,5.06431682,197.46,197.42,0.03]
[1756695701777,43.72510887,197.46,197.42,0.03]
[1756695703206,31.06431682,197.46,197.42,0.03]
[1756695704479,0.01441884,197.52,197.43,57.99559401]
[1756695704703,0.01441884,197.52,197.43,203.99346939]
[1756695704878,17.72062173,197.51,197.44,5.99787538]
[1756695705199,26.0,197.48,197.43,203.99346939]
[1756695705393,17.72062173,197.51,197.43,197.99559401]
[1756695705608,5.06406036,197.47,197.43,197.99559401]
[1756695705975,26.0,197.51,197.45,13.59559401]
[1756695706300,26.0,197.51,197.45,19.59346939]
[1756695706506,26.0,197.51,197.45,13.59559401]
[1756695706684,31.06303478,197.51,197.45,13.59559401]
[1756695706884,43.72062173,197.51,197.45,13.59559401]
[1756695707100,43.72062173,197.51,197.42,0.03]
[1756695707404,3.30500397,197.5,197.42,0.03]
[1756695707578,43.72062173,197.51,197.42,0.03]
[1756695708013,3.3049039,197.5,197.42,0.03]
[1756695708389,43.72062173,197.51,197.42,13.62559401]
[1756695710112,5.06303478,197.51,197.44,5.99787538]
[1756695710282,5.06303478,197.51,197.43,19.59346939]
[1756695710482,5.06303478,197.51,197.43,13.59559401]
[1756695710810,5.06303478,197.51,197.43,19.59346939]
[1756695711314,17.72062173,197.51,197.43,19.59346939]
[1756695712015,17.72062173,197.51,197.42,140.03]
[1756695712016,17.72062173,197.51,197.44,44.3]
[1756695713214,5.06303478,197.51,197.44,44.3]
[1756695714093,17.72062173,197.51,197.44,44.3]
[1756695718185,5.06303478,197.51,197.45,17.3404654]
[1756695718406,5.07736926,197.52,197.48,3.74487139]
[1756695718714,0.01441884,197.52,197.48,3.74487139]
[1756695719088,5.07726893,197.52,197.49,44.22]
[1756695720029,43.73421506,197.52,197.47,44.2]
[1756695720332,31.07726893,197.52,197.47,13.59559401]
[1756695720503,31.07726893,197.52,197.47,17.3404654]
[1756695720827,0.01441884,197.52,197.51,17.3404654]
[1756695721127,0.01441884,197.52,197.51,88.04676887]
[1756695721294,0.01441884,197.52,197.51,48.98734047]
[1756695721626,0.01441884,197.52,197.51,92.661037]
[1756695721826,0.01441884,197.52,197.51,39.59559401]
[1756695722013,0.01441884,197.52,197.51,87.5204654]
[1756695722397,0.01441884,197.52,197.51,13.59559401]
[1756695722603,0.01441884,197.52,197.51,61.5204654]
[1756695723237,0.01441884,197.52,197.51,17.3404654]
[1756695723534,0.01441884,197.52,197.51,61.5004654]
[1756695724027,0.01441884,197.52,197.51,206.56350018]
[1756695724639,0.01441884,197.52,197.51,157.3404654]
[1756695724849,0.01441884,197.52,197.51,153.59559401]
[1756695725129,0.01441884,197.52,197.51,201.4804654]
[1756695725348,0.01441884,197.52,197.51,157.3404654]
[1756695725502,0.01441884,197.52,197.51,197.73559401]
[1756695725705,0.01441884,197.52,197.51,157.3404654]
[1756695725909,0.01441884,197.52,197.51,197.71559401]
[1756695726122,0.01441884,197.52,197.51,140.0]
[1756695726309,0.01441884,197.52,197.43,0.03]
[1756695726514,0.01441884,197.52,197.45,13.59559401]
[1756695727428,0.01441884,197.52,197.46,44.1]
[1756695727728,26.0,197.51,197.43,0.03]
[1756695727911,26.0,197.51,197.43,44.13]
[1756695728442,26.0,197.51,197.43,0.03]
[1756695729752,26.0,197.47,197.43,0.03]
[1756695730917,26.0,197.47,197.42,0.03]
[1756695731928,26.0,197.43,197.42,0.03]
[1756695732913,31.06508635,197.43,197.42,0.03]
[1756695741050,31.06508635,197.43,197.41,0.03]
[1756695741226,33.09580035,197.43,197.4,0.03]
[1756695741428,58.42123214,197.43,197.29,5.99294767]
[1756695741659,13.59559401,197.42,197.29,26.82]
[1756695741826,26.0,197.39,197.29,26.82]
[1756695742024,30.11318764,197.39,197.29,26.82]
[1756695742220,26.0,197.35,197.29,43.96]
[1756695744226,5.06739637,197.34,197.29,43.96]
[1756695744423,5.06739637,197.34,197.29,183.96]
[1756695744855,31.06715855,197.35,197.3,13.59559401]
[1756695745253,31.06715855,197.35,197.3,19.58854168]
[1756695745457,31.06715855,197.35,197.29,183.96]
[1756695745458,5.06508635,197.43,197.32,19.58854168]
[1756695745761,26.0,197.4,197.32,5.99294767]
[1756695746358,5.06611277,197.39,197.34,13.59559401]
[1756695746532,5.06611277,197.39,197.34,57.51559401]
[1756695746734,31.06611277,197.39,197.34,57.51559401]
[1756695747041,5.06482982,197.44,197.38,5.99294767]
[1756695747440,5.06482982,197.44,197.35,13.59559401]
[1756695747441,17.72690437,197.44,197.39,43.92]
[1756695748157,5.06380392,197.48,197.42,19.58854168]
[1756695748433,5.06380392,197.48,197.44,13.59559401]
[1756695748640,5.06380392,197.48,197.43,13.59559401]
[1756695748841,5.06380392,197.48,197.44,43.9]
[1756695749435,0.01441884,197.52,197.44,43.9]
[1756695749436,0.01441884,197.52,197.45,19.58854168]
[1756695749640,5.06303478,197.51,197.47,5.99294767]
[1756695749860,0.01441884,197.52,197.49,13.59559401]
[1756695750039,0.01441884,197.52,197.51,13.59559401]
[1756695750633,0.01441884,197.52,197.51,19.58854168]
[1756695751259,0.01441884,197.52,197.51,13.59559401]
[1756695752137,0.01441884,197.52,197.51,19.58854168]
[1756695752343,0.01441884,197.52,197.51,11.05598245]
[1756695753077,0.01441884,197.52,197.51,169.63503703]
[1756695753570,0.06,197.54,197.53,39.59559401]
[1756695753736,0.06,197.54,197.53,89.93479389]
[1756695754342,0.06,197.56,197.55,18.65760362]
[1756695754542,0.06,197.56,197.55,25.15675225]
[1756695754752,0.06,197.59,197.56,13.59559401]
[1756695754962,0.06,197.59,197.58,19.58854168]
[1756695755171,0.06,197.61,197.58,19.58854168]
[1756695755339,0.06,197.71,197.61,13.59559401]
[1756695755703,0.06,197.71,197.66,39.59559401]
[1756695755845,0.06,197.71,197.66,40.10151326]
[1756695756042,0.06,197.71,197.66,89.89446093]
[1756695756370,0.06,197.71,197.66,94.95365348]
[1756695756665,0.06,197.71,197.66,234.44773423]
[1756695756862,0.06,197.71,197.66,228.45478656]
[1756695757046,0.06,197.71,197.66,234.44773423]
[1756695757971,0.06,197.71,197.66,203.34854168]
[1756695759237,0.06,197.71,197.68,39.59559401]
[1756695759476,0.06,197.71,197.68,46.09440974]
[1756695759671,0.06,197.71,197.69,13.59559401]
[1756695759980,0.06,197.71,197.7,63.83435857]
[1756695760546,0.06,197.71,197.7,63.30854168]
[1756695760775,0.06,197.71,197.7,68.36671062]
[1756695761372,0.06,197.71,197.7,63.30854168]
[1756695761691,0.06,197.71,197.7,68.36671062]
[1756695762877,0.06,197.71,197.7,63.30854168]
[1756695763242,0.1,197.72,197.71,13.59559401]
[1756695763853,0.1,197.72,197.71,57.27559401]
[1756695764053,0.1,197.72,197.71,63.26854168]
[1756695764567,0.1,197.72,197.71,68.32645478]
[1756695764768,0.1,197.72,197.71,63.26854168]
[1756695765653,0.1,197.72,197.71,13.59559401]
[1756695765972,0.06,197.77,197.72,13.59559401]
[1756695766173,0.06,197.77,197.76,19.58854168]
[1756695766371,0.06,197.77,197.76,203.24854168]
[1756695767051,0.06,197.77,197.76,159.58854168]
[1756695767257,0.06,197.77,197.76,57.23559401]
[1756695767457,0.06,197.77,197.76,13.59559401]
[1756695767662,0.06,197.77,197.76,57.23559401]
[1756695768192,0.06,197.77,197.73,5.99294767]
[1756695768356,0.06,197.77,197.75,13.59559401]
[1756695768660,0.06,197.77,197.76,43.62]
[1756695769261,0.06,197.77,197.7,13.59559401]
[1756695769471,0.06,197.77,197.72,13.59559401]
[1756695769670,0.06,197.77,197.74,13.59559401]
[1756695769866,0.06,197.77,197.76,13.59559401]
[1756695770759,0.06,197.77,197.76,19.58854168]
[1756695771790,0.06,197.77,197.76,24.57835659]
[1756695772314,17.74195773,197.83,197.76,18.58540892]
[1756695772596,17.74195773,197.83,197.78,13.59559401]
[1756695772793,17.74195773,197.83,197.79,43.58]
[1756695773387,17.74195773,197.83,197.75,13.59559401]
[1756695773592,17.74195773,197.83,197.77,13.59559401]
[1756695773995,43.74195773,197.83,197.74,140.0]
[1756695774186,26.0,197.8,197.75,13.59559401]
[1756695774489,26.0,197.8,197.76,43.56]
[1756695774900,5.05586733,197.79,197.76,43.56]
[1756695775394,17.69553566,197.79,197.77,43.54]
[1756695775593,17.69553566,197.79,197.78,43.54]
[1756695776193,5.05586733,197.79,197.78,43.54]
[1756695776709,17.69553566,197.79,197.72,0.03]
[1756695777002,12.63966833,197.79,197.73,43.54]
[1756695778164,12.63966833,197.79,197.73,183.54]
[1756695778992,38.63966833,197.79,197.73,140.0]
[1756695779183,43.69553566,197.79,197.74,43.5]
[1756695779494,43.69553566,197.79,197.73,140.0]
[1756695779675,43.69553566,197.79,197.74,43.5]
[1756695780281,43.69553566,197.79,197.72,0.03]
[1756695780282,26.0,197.76,197.72,0.03]
[1756695780478,26.0,197.77,197.74,43.48]
[1756695781009,17.69553566,197.79,197.74,43.48]
[1756695781184,43.69553566,197.79,197.74,43.48]
[1756695781391,31.05586733,197.79,197.74,43.48]
[1756695781698,43.69553566,197.79,197.74,43.48]
[1756695781881,43.69553566,197.79,197.75,43.48]
[1756695782087,26.0,197.76,197.72,5.16104884]
[1756695782276,26.0,197.76,197.72,0.03]
[1756695782473,17.69553566,197.79,197.72,0.03]
[1756695782474,160.4,197.78,197.72,0.03]
[1756695783287,160.4,197.78,197.68,5.10741146]
[1756695783288,26.0,197.74,197.68,0.03]
[1756695783695,26.0,197.73,197.61,5.040712]
[1756695783887,26.0,197.73,197.62,23.7]
[1756695784283,26.0,197.72,197.62,43.44]
[1756695784989,26.0,197.74,197.62,43.44]
[1756695785198,43.44,197.78,197.63,19.58854168]
[1756695785579,26.0,197.74,197.66,13.59559401]
[1756695785781,17.69732517,197.77,197.67,43.44]
[1756695785989,17.69732517,197.77,197.68,13.59559401]
[1756695786301,17.69732517,197.77,197.68,153.59559401]
[1756695786688,26.0,197.74,197.68,140.0]
[1756695787324,17.70090526,197.73,197.58,26.0]
[1756695787481,17.70090526,197.73,197.62,43.42]
[1756695787998,17.70090526,197.73,197.63,13.59559401]
[1756695788688,17.70090526,197.73,197.67,0.03]
[1756695788999,5.0574015,197.73,197.67,13.62559401]
[1756695789198,0.06,197.77,197.67,19.61854168]
[1756695789706,0.06,197.77,197.67,13.62559401]
[1756695790281,0.06,197.77,197.67,153.62559401]
[1756695790505,0.06,197.77,197.68,43.4]
[1756695790679,0.06,197.77,197.68,13.59559401]
[1756695790879,0.06,197.77,197.69,43.4]
[1756695791121,0.06,197.77,197.7,43.4]
[1756695791302,26.0,197.74,197.7,43.4]
[1756695791613,43.75732517,197.77,197.7,43.4]
[1756695792005,17.75732517,197.77,197.7,43.4]
[1756695792903,5.11637862,197.77,197.7,43.4]
[1756695794086,17.75732517,197.77,197.7,43.4]
[1756695795013,5.11637862,197.77,197.71,13.59559401]
[1756695795190,0.06,197.77,197.72,5.99294767]
[1756695795910,0.06,197.77,197.73,13.59559401]
[1756695796118,0.06,197.77,197.75,19.58854168]
[1756695796289,0.06,197.77,197.76,56.93559401]
[1756695796488,0.06,197.77,197.76,196.93559401]
[1756695796689,0.06,197.77,197.76,202.92854168]
[1756695797599,0.06,197.77,197.76,153.59559401]
[1756695798008,0.06,197.77,197.76,196.91559401]
[1756695799014,0.06,197.77,197.76,207.96517598]
[1756695799328,0.06,197.77,197.76,202.90854168]
[1756695800692,0.06,197.77,197.76,207.96517598]
[1756695801499,0.06,197.77,197.76,196.91559401]
[1756695801705,0.06,197.77,197.76,207.96517598]
[1756695802315,0.06,197.79,197.78,19.58854168]
[1756695802517,0.06,197.79,197.78,20.09415397]
[1756695803593,0.06,197.79,197.78,63.35415397]
[1756695804406,0.06,197.79,197.78,68.41027693]
[1756695805297,0.06,197.79,197.78,208.41027693]
[1756695805518,0.06,197.79,197.78,207.90466464]
[1756695805726,0.06,197.79,197.78,202.84854168]
[1756695805938,0.06,197.79,197.78,153.59559401]
[1756695806095,0.06,197.79,197.78,183.24]
[1756695806298,0.06,197.79,197.74,13.59559401]
[1756695806519,0.06,197.79,197.76,13.59559401]
[1756695806727,0.06,197.79,197.78,13.59559401]
[1756695807037,0.05,197.83,197.82,39.59559401]
[1756695807237,0.1,197.84,197.82,39.59559401]
[1756695807238,0.1,197.84,197.83,13.59559401]
[1756695807524,0.06,197.89,197.85,39.59559401]
[1756695807734,0.06,197.89,197.86,13.59559401]
[1756695808402,0.06,197.89,197.86,24.64262032]
[1756695808801,0.06,197.89,197.88,19.58854168]
[1756695809307,0.1,197.97,197.88,165.58148935]
[1756695809605,0.1,197.97,197.88,140.0]
[1756695809811,0.1,197.97,197.91,5.99294767]
[1756695810012,0.1,197.97,197.92,60.55279128]
[1756695810215,0.1,197.97,197.93,9.75014494]
[1756695810426,0.1,197.97,197.94,46.95719727]
[1756695810612,0.1,197.97,197.96,13.59559401]
[1756695810813,0.1,197.97,197.96,60.55279128]
[1756695811626,0.1,197.97,197.96,66.53850604]
[1756695811805,0.01931435,197.97,197.96,66.53850604]
[1756695812211,0.01931435,197.97,197.96,66.53789883]
[1756695812536,0.01931435,197.97,197.96,76.61111108]
[1756695812833,20.0,198.1,197.96,144.2545097]
[1756695813137,5.15076486,197.99,197.97,3.74935715]
[1756695813314,0.1,197.99,197.98,3.74935715]
[1756695813516,5.15076013,197.99,197.98,3.74935715]
[1756695814023,26.0,197.96,197.87,5.99294767]
[1756695814220,0.1,197.99,197.92,5.99294767]
[1756695814420,0.1,197.99,197.93,43.16]
[1756695815019,0.1,197.99,197.93,54.20523859]
[1756695815235,0.1,197.99,197.93,49.15294767]
[1756695815412,5.15084542,197.99,197.93,43.16]
[1756695815607,31.15084542,197.99,197.93,43.16]
[1756695815938,31.15084542,197.99,197.93,183.16]
[1756695816513,26.1,197.99,197.93,189.15294767]
[1756695816717,31.15086365,197.99,197.93,189.15294767]
[1756695817025,31.15077413,197.99,197.93,189.15294767]
[1756695817235,26.1,197.99,197.93,189.15294767]
[1756695817539,0.1,197.99,197.95,5.99294767]
[1756695817730,0.1,197.99,197.97,19.58854168]
[1756695817917,0.1,197.99,197.98,5.99294767]
[1756695818111,0.1,197.99,197.97,13.59559401]
[1756695818327,0.1,197.99,197.98,19.58854168]
[1756695818710,0.1,197.99,197.98,67.75955693]
[1756695819841,0.1,197.99,197.98,61.76660926]
[1756695820017,0.1,197.99,197.98,67.75955693]
[1756695820341,1e-08,197.99,197.98,67.75955693]
[1756695820525,5.04671381,198.15,198.02,39.59559401]
[1756695820717,5.04671381,198.15,197.98,86.38004273]
[1756695820718,18.64125726,198.19,198.06,5.99294767]
[1756695821042,26.0,198.16,198.07,43.1]
[1756695821242,18.64125726,198.19,198.07,43.1]
[1756695821416,26.0,198.16,198.07,183.1]
[1756695821617,31.25541539,198.19,198.07,183.1]
[1756695822012,26.0,198.16,198.07,183.1]
[1756695822241,5.04362737,198.27,198.12,5.99294767]
[1756695822447,5.04362737,198.27,198.14,5.99294767]
[1756695822643,5.04362737,198.27,198.16,11.03937479]
[1756695822848,5.04362737,198.27,198.17,49.09294767]
[1756695823026,5.04362737,198.27,198.18,5.99294767]
[1756695823223,5.04261005,198.31,198.2,5.99294767]
[1756695823442,5.04261005,198.31,198.21,43.08]
[1756695824040,26.0,198.28,198.21,43.08]
[1756695824431,17.64913518,198.31,198.21,43.08]
[1756695824631,12.60652513,198.31,198.21,43.08]
[1756695825049,26.0,198.28,198.21,43.08]
[1756695825251,26.0,198.28,198.21,183.08]
[1756695825924,26.0,198.28,198.22,46.7578158]
[1756695826127,0.06,198.31,198.26,5.99294767]
[1756695826320,0.06,198.31,198.25,5.99294767]
[1756695826520,0.06,198.31,198.26,49.05294767]
[1756695826748,0.06,198.31,198.27,3.69761141]
[1756695826926,0.06,198.31,198.28,43.06]
[1756695827340,0.06,198.31,198.19,13.11810196]
[1756695827341,0.06,198.31,198.29,43.04]
[1756695827937,0.06,198.31,198.25,5.99294767]
[1756695828225,0.06,198.31,198.27,5.99294767]
[1756695828426,0.06,198.31,198.27,9.67935614]
[1756695828858,26.06,198.31,198.28,43.04]
[1756695829057,26.06,198.31,198.22,5.99294767]
[1756695829231,26.06,198.31,198.23,140.0]
[1756695829554,26.06,198.31,198.24,3.68251348]
[1756695829864,26.06,198.31,198.24,43.02]
[1756695830231,26.06,198.31,198.25,43.02]
[1756695830431,26.06,198.31,198.19,5.99294767]
[1756695830646,26.06,198.31,198.21,5.99294767]
[1756695830851,5.04286434,198.3,198.22,5.99294767]
[1756695831048,26.0,198.27,198.23,43.02]
[1756695831854,26.0,198.27,198.24,3.67765456]
[1756695832067,5.10264227,198.31,198.24,9.67060223]
[1756695832362,5.10264227,198.31,198.24,3.67765456]
[1756695832543,26.0,198.28,198.25,43.0]
[1756695833042,26.0,198.28,198.2,5.99294767]
[1756695833043,5.04362737,198.27,198.2,5.99294767]
[1756695833246,5.04362737,198.27,198.21,43.0]
[1756695833462,31.04340495,198.28,198.22,3.67669076]
[1756695834536,31.04340495,198.28,198.17,17.27228477]
[1756695834855,43.65183746,198.28,198.18,46.65669076]
[1756695835058,43.65183746,198.28,198.19,3.67669076]
[1756695835767,43.65183746,198.28,198.19,143.67669076]
[1756695835968,13.59559401,198.27,198.15,36.4]
[1756695836260,13.59559401,198.27,198.16,3.67760313]
[1756695836434,13.59559401,198.27,198.17,42.98]
[1756695836637,13.59559401,198.27,198.18,3.67912862]
[1756695836835,13.59559401,198.27,198.17,42.98]
[1756695837257,26.0,198.22,198.17,42.98]
[1756695837850,26.0,198.22,198.15,36.4]
[1756695838063,26.0,198.22,198.16,42.96]
[1756695839248,26.0,198.18,198.11,256.36887734]
[1756695839464,26.0,198.18,198.12,46.64496461]
[1756695839770,26.0,198.18,198.12,42.96]
[1756695840077,26.0,198.18,198.13,3.68691018]
[1756695840239,26.0,198.18,198.14,5.99294767]
[1756695840741,5.04492226,198.22,198.13,3.68691018]
[1756695841163,26.0,198.17,198.12,3.68691018]
[1756695841368,26.0,198.17,198.11,116.36887734]
[1756695841568,26.0,198.16,198.11,116.36887734]
[1756695841753,13.59559401,198.15,198.11,116.36887734]
[1756695842149,13.59559401,198.15,198.11,89.75072791]
[1756695842352,26.0,198.08,198.07,42.94]
[1756695842659,26.0,198.08,198.04,42.94]
[1756695842848,26.0,198.1,198.04,42.94]
[1756695843252,13.59559401,198.13,198.04,42.94]
[1756695843253,26.0,198.06,198.05,3.69528742]
[1756695843847,26.0,198.08,198.05,3.69528742]
[1756695844562,26.0,198.08,198.05,143.69528742]
[1756695844886,26.0,198.08,197.99,0.03]
[1756695845057,26.0,198.08,198.0,46.64163924]
[1756695845262,26.0,198.04,198.01,3.70163924]
[1756695846383,26.0,198.0,197.99,0.03]
[1756695846682,26.0,198.0,197.97,0.03]
[1756695846872,26.0,197.99,197.97,0.03]
[1756695847272,5.05101525,197.98,197.97,0.03]
[1756695849347,26.0,197.98,197.97,0.03]
[1756695849776,12.62194565,198.07,197.97,0.03]
[1756695850078,5.04897505,198.06,197.98,48.91294767]
[1756695850451,5.06510039,198.24,198.01,5.99294767]
[1756695850452,17.66427777,198.14,198.01,5.99294767]
[1756695850647,2.024036,198.09,198.01,5.99294767]
[1756695850875,26.0,198.11,198.01,5.99294767]
[1756695851070,15.177194,198.13,198.01,5.99294767]
[1756695851460,5.04770077,198.11,198.02,5.99294767]
[1756695851662,5.04770077,198.11,198.03,42.92]
[1756695852056,26.0,198.08,198.03,42.92]
[1756695852582,26.0,198.08,198.03,140.0]
[1756695852878,26.0,198.04,197.97,42.95]
[1756695853564,18.64278524,198.13,198.02,5.99294767]
[1756695853765,5.04719123,198.13,198.04,5.99294767]
[1756695853973,5.04719123,198.13,198.04,8.8697749]
[1756695854168,26.0,198.11,198.04,8.8697749]
[1756695854769,5.04694539,198.14,198.04,8.8697749]
[1756695854955,26.0,198.11,198.04,8.8697749]
[1756695855157,5.04694539,198.14,198.04,8.8697749]
[1756695855381,26.0,198.11,198.04,8.8697749]
[1756695855560,5.0466818,198.15,198.07,8.8697749]
[1756695855879,5.0466818,198.15,198.08,42.9]
[1756695856084,31.0466818,198.15,198.08,42.9]
[1756695856386,5.0446451,198.23,198.09,14.10041505]
[1756695856571,5.0446451,198.23,198.14,8.8697749]
[1756695856774,26.0,198.2,198.15,42.9]
[1756695857581,5.04566325,198.19,198.15,42.9]
[1756695857792,2.63209154,198.29,198.18,8.8697749]
[1756695857971,17.65180551,198.28,198.17,8.8697749]
[1756695858163,17.65180551,198.28,198.16,8.8697749]
[1756695858365,26.0,198.25,198.17,46.60396607]
[1756695858670,13.59559401,198.27,198.18,3.72396607]
[1756695858860,5.043373,198.28,198.19,12.59374097]
[1756695859067,5.043373,198.28,198.2,3.72396607]
[1756695859260,5.043373,198.28,198.21,3.72396607]
[1756695859467,0.06,198.31,198.22,46.60396607]
[1756695859683,0.06,198.31,198.23,3.72396607]
[1756695859880,26.0,198.3,198.24,3.72396607]
[1756695860196,0.06,198.31,198.25,3.72396607]
[1756695860362,0.06,198.31,198.22,42.88]
[1756695860559,0.06,198.31,198.23,3.72481086]